fUST/lending_fUST_20241106
["ID","MTS","AMOUNT","RATE_DAILY","PERIOD"]
[341439798,1730884247020,-16088.85,0.00031247,2]
[341439799,1730884247030,-500.0,0.00031247,2]
[341439800,1730884247039,-3439.4,0.00031247,2]
[341439801,1730884247048,-9956.53,0.00031247,2]
[341439802,1730884247057,-998.36,0.00031247,2]
[341439803,1730884247067,-500.0,0.00031247,2]
[341439804,1730884247076,-500.0,0.00031248,2]
[341439805,1730884247085,-500.0,0.00031248,2]
[341439806,1730884247096,-763.06,0.00031248,2]
[341439807,1730884247106,-500.0,0.00031248,2]
[341439808,1730884247116,-500.0,0.00031248,2]
[341439809,1730884247124,-1127.66,0.00031248,2]
[341439810,1730884247134,-500.0,0.00031248,2]
[341439811,1730884247147,-2461.47,0.00031248,2]
[341439812,1730884247156,-500.0,0.00031248,2]
[341439813,1730884247166,-1232.1,0.00031248,2]
[341439814,1730884247176,-500.0,0.00031248,2]
[341439815,1730884247185,-2242.34,0.00031248,2]
[341439816,1730884247195,-500.0,0.00031248,2]
[341439817,1730884247204,-3116.59,0.00031248,2]
[341439818,1730884247213,-692.71,0.00031248,2]
[341439819,1730884247223,-2640.57,0.000313,14]
[341439820,1730884247233,-500.0,0.00031369,2]
[341439821,1730884247243,-1058.71882482,0.00031421,2]
[341439822,1730884247254,-1268.85,0.00031521,2]
[341439823,1730884247263,-741.75,0.00031521,2]
[341439824,1730884247272,-500.0,0.00031521,2]
[341439825,1730884247282,-500.0,0.00031521,2]
[341439826,1730884247291,-6339.79,0.00031521,2]
[341439827,1730884247303,-16088.85,0.00031521,2]
[341439828,1730884247313,-500.0,0.00031521,2]
[341439829,1730884247325,-3439.4,0.00031521,2]
[341439830,1730884247338,-9956.53,0.00031521,2]
[341439831,1730884247348,-998.36,0.00031521,2]
[341439832,1730884247357,-500.0,0.00031521,2]
[341439833,1730884247367,-500.0,0.00031522,2]
[341439834,1730884247377,-645.11213402,0.00031522,2]
[341439835,1730884247387,-763.06,0.00031522,2]
[341439836,1730884247400,-500.0,0.00031522,2]
[341439837,1730884247412,-500.0,0.00031522,2]
[341439838,1730884247421,-1127.66,0.00031522,2]
[341439839,1730884247431,-2461.47,0.00031522,2]
[341439840,1730884247441,-500.0,0.00031522,2]
[341439841,1730884247452,-1232.1,0.00031522,2]
[341439842,1730884247462,-500.0,0.00031522,2]
[341439843,1730884247471,-2242.34,0.00031522,2]
[341439844,1730884247480,-500.0,0.00031522,2]
[341439845,1730884247489,-3116.59,0.00031522,2]
[341439846,1730884247499,-692.71,0.00031522,2]
[341439847,1730884247508,-321.98,0.000316,14]
[341439848,1730884247518,-1303.3,0.000316,30]
[341439849,1730884247527,-1362.86,0.000316,30]
[341439850,1730884247538,-500.0,0.00031643,2]
[341439851,1730884247547,-502.05414503,0.00031773,5]
[341439852,1730884247557,-500.0,0.00031773,5]
[341439853,1730884247567,-501.06877509,0.00031773,5]
[341439854,1730884247578,-184.78378039,0.00031773,2]
[341439855,1730884247588,-1268.85,0.00031795,2]
[341439856,1730884247597,-741.75,0.00031795,2]
[341439857,1730884247606,-500.0,0.00031795,2]
[341439858,1730884247616,-500.0,0.00031795,2]
[341439859,1730884247625,-6339.79,0.00031795,2]
[341439860,1730884247634,-16088.85,0.00031795,2]
[341439861,1730884247646,-500.0,0.00031795,2]
[341439862,1730884247656,-3439.4,0.00031795,2]
[341439863,1730884247665,-9956.53,0.00031795,2]
[341439864,1730884247675,-998.36,0.00031795,2]
[341439865,1730884247684,-500.0,0.00031795,2]
[341439866,1730884247693,-500.0,0.00031796,2]
[341439867,1730884247703,-763.06,0.00031796,2]
[341439868,1730884247713,-500.0,0.00031796,2]
[341439869,1730884247724,-500.0,0.00031796,2]
[341439870,1730884247734,-1127.66,0.00031796,2]
[341439871,1730884247743,-2461.47,0.00031796,2]
[341439872,1730884247752,-500.0,0.00031796,2]
[341439873,1730884247761,-1232.1,0.00031796,2]
[341439874,1730884247771,-500.0,0.00031796,2]
[341439875,1730884247780,-2242.34,0.00031796,2]
[341439876,1730884247790,-500.0,0.00031796,2]
[341439877,1730884247800,-3116.59,0.00031796,2]
[341439878,1730884247811,-692.71,0.00031796,2]
[341439879,1730884247820,-500.0,0.000318,2]
[341439880,1730884247829,-370.34,0.000318,14]
[341439881,1730884247838,-170570.20953229,0.000318,2]
[341439882,1730884588878,161.566568,0.00013973,2]
[341439883,1730884616254,175.0,9e-05,2]
[341439884,1730884729250,1169.27083333,0.0002082,2]
[341439885,1730884887274,1169.27083333,0.0002082,2]
[341439886,1730885102408,172.884967,0.00013973,2]
[341439894,1730885281032,5000.0,0.0002082,2]
[341439895,1730885288821,5000.0,0.0002082,2]
[341439896,1730885296792,5000.0,0.0002082,2]
[341439897,1730885304582,5000.0,0.0002082,2]
[341439903,1730885326388,4350.30843994,0.00015,2]
[341439964,1730885432466,-1169.27083333,0.0002241,2]
[341439965,1730885432475,-178.406701,0.00024795,2]
[341439966,1730885432485,-626.033556,0.00024795,2]
[341439967,1730885432494,-820.054182,0.00024795,2]
[341439968,1730885432504,-300.0,0.00024863,2]
[341439969,1730885432513,-300.0,0.00024863,2]
[341439970,1730885432522,-4350.06512605,0.00024864,2]
[341439971,1730885432543,-1043.7186396,0.00024864,2]
[341439972,1730885432591,-499.41043725,0.00024864,2]
[341439978,1730885438961,-1169.27083333,0.00021615,2]
[341439979,1730885438971,-5438.09236157,0.00024864,2]
[341439980,1730885438983,-1269.63269239,0.00024864,2]
[341439981,1730885438994,-12299.08074314,0.00024864,2]
[341439982,1730885439003,-178.406701,0.00024919,2]
[341439983,1730885439013,-1000.0,0.00025,30]
[341439984,1730885439021,-227.4405716,0.00025041,2]
[341439985,1730885439030,-524.7736355,0.00025177,2]
[341439986,1730885439040,-627.3069553,0.00025331,2]
[341439987,1730885439050,-626.033556,0.0002548,2]
[341439988,1730885439060,-626.033556,0.00026165,2]
[341439989,1730885439070,-187.28,0.00026766,2]
[341439990,1730885439079,-420.0,0.00026938,2]
[341439991,1730885439089,-393.66054403,0.00027396,2]
[341439992,1730885439098,-178.48584269,0.00027396,2]
[341439993,1730885439108,-236.53632231,0.00027396,2]
[341439995,1730885439118,-228.22743653,0.00027396,2]
[341439997,1730885439129,-415.84602871,0.00027397,2]
[341439999,1730885439138,-500.0,0.00027397,2]
[341440001,1730885439149,-500.0,0.00027397,2]
[341440003,1730885439160,-500.0,0.00027397,2]
[341440005,1730885439170,-595.13,0.00027397,2]
[341440007,1730885439179,-71.00412019,0.00027397,2]
[341440028,1730885440462,-428.99587981,0.00027397,2]
[341440029,1730885440472,-312.7364669,0.00027397,2]
[341440042,1730885446816,-187.2635331,0.00027397,2]
[341440043,1730885446840,-572.29,0.00027397,2]
[341440044,1730885446850,-338.66959896,0.00027397,2]
[341440045,1730885446860,-500.0,0.00027397,2]
[341440046,1730885446869,-500.0,0.00027397,2]
[341440047,1730885446878,-913.56,0.00027397,2]
[341440048,1730885446888,-500.0,0.00027397,2]
[341440049,1730885446897,-500.0,0.00027397,2]
[341440050,1730885446907,-1866.94,0.00027397,2]
[341440051,1730885446916,-500.0,0.00027397,2]
[341440052,1730885446926,-500.0,0.00027397,2]
[341440053,1730885446937,-500.0,0.00027397,2]
[341440054,1730885446946,-500.0,0.00027397,2]
[341440055,1730885446959,-576.22641008,0.00027397,2]
[341440056,1730885446968,-500.0,0.00027397,2]
[341440057,1730885446978,-1681.75,0.00027397,2]
[341440058,1730885446988,-500.0,0.00027397,2]
[341440059,1730885446997,-1025.34,0.00027397,2]
[341440060,1730885447006,-924.07,0.00027397,2]
[341440061,1730885447016,-500.0,0.00027397,2]
[341440062,1730885447027,-608.05,0.00027397,2]
[341440063,1730885447036,-5078.02,0.00027397,2]
[341440064,1730885447047,-500.0,0.00027397,2]
[341440065,1730885447056,-548.4,0.00027397,2]
[341440066,1730885447065,-500.0,0.00027397,2]
[341440067,1730885447082,-500.0,0.00027397,2]
[341440068,1730885447092,-500.0,0.00027397,2]
[341440069,1730885447101,-352.45606928,0.00027397,2]
[341440070,1730885447111,-599.2894468,0.00027397,2]
[341440071,1730885447272,-500.0,0.00027397,2]
[341440072,1730885447282,-500.0,0.00027397,2]
[341440073,1730885447292,-2467.3,0.00027397,2]
[341440074,1730885447301,-500.0,0.00027397,2]
[341440075,1730885447310,-586.47599497,0.00027397,2]
[341440076,1730885447319,-7467.39,0.00027397,2]
[341440077,1730885447328,-535.10155709,0.00027397,2]
[341440078,1730885447343,-14544.87,0.00027397,2]
[341440079,1730885447353,-1331.2,0.00027397,2]
[341440080,1730885447363,-500.0,0.00027397,2]
[341440081,1730885447372,-2686.66,0.00027397,2]
[341440082,1730885447381,-500.0,0.00027397,2]
[341440083,1730885447390,-426.21914816,0.00027397,2]
[341440084,1730885447400,-500.0,0.00027397,2]
[341440085,1730885447409,-503.60686691,0.00027397,2]
[341440086,1730885447418,-1961.45,0.00027397,2]
[341440087,1730885447427,-901.37,0.00027397,2]
[341440088,1730885447437,-153.04681159,0.00027397,2]
[341440089,1730885447447,-500.0,0.00027397,2]
[341440090,1730885447456,-501.85515526,0.00027397,2]
[341440091,1730885447465,-500.0,0.00027397,2]
[341440092,1730885447474,-500.0,0.00027397,2]
[341440093,1730885447483,-500.0,0.00027397,2]
[341440094,1730885447493,-245.97610195,0.00027397,2]
[341440095,1730885447502,-513.53361582,0.00027397,2]
[341440096,1730885447512,-638.46,0.00027651,3]
[341440097,1730885447523,-851.28,0.00027661,3]
[341440098,1730885447532,-425.64,0.00027661,3]
[341440099,1730885447541,-212.82,0.00027661,3]
[341440100,1730885447552,-500.0,0.00027671,2]
[341440101,1730885447562,-500.0,0.00027671,2]
[341440102,1730885447572,-500.0,0.00027671,2]
[341440103,1730885447582,-572.29,0.00027671,2]
[341440104,1730885447592,-500.0,0.00027671,2]
[341440105,1730885447601,-500.0,0.00027671,2]
[341440106,1730885447610,-913.56,0.00027671,2]
[341440107,1730885447619,-500.0,0.00027671,2]
[341440108,1730885447628,-500.0,0.00027671,2]
[341440109,1730885447638,-1866.94,0.00027671,2]
[341440110,1730885447647,-522.92802043,0.00027671,2]
[341440111,1730885447657,-500.0,0.00027671,2]
[341440112,1730885447667,-1681.75,0.00027671,2]
[341440113,1730885447680,-516.00592858,0.00027671,2]
[341440114,1730885447690,-1025.34,0.00027671,2]
[341440115,1730885447700,-924.07,0.00027671,2]
[341440116,1730885447710,-500.0,0.00027671,2]
[341440117,1730885447720,-608.05,0.00027671,2]
[341440118,1730885447730,-5078.02,0.00027671,2]
[341440119,1730885447740,-500.0,0.00027671,2]
[341440120,1730885447752,-548.4,0.00027671,2]
[341440121,1730885447763,-500.0,0.00027671,2]
[341440122,1730885447772,-500.0,0.00027671,2]
[341440123,1730885447781,-500.0,0.00027671,2]
[341440124,1730885447791,-500.0,0.00027671,2]
[341440125,1730885447800,-500.0,0.00027671,2]
[341440126,1730885447811,-2467.3,0.00027671,2]
[341440127,1730885447820,-500.0,0.00027671,2]
[341440128,1730885447830,-7467.39,0.00027671,2]
[341440129,1730885447840,-14544.87,0.00027671,2]
[341440130,1730885447850,-1331.2,0.00027671,2]
[341440131,1730885447861,-500.0,0.00027671,2]
[341440132,1730885447870,-2686.66,0.00027671,2]
[341440133,1730885447879,-500.0,0.00027671,2]
[341440134,1730885447889,-372.70773661,0.00027671,2]
[341440135,1730885447898,-1961.45,0.00027671,2]
[341440136,1730885447907,-901.37,0.00027671,2]
[341440137,1730885447916,-410.06277266,0.00027671,2]
[341440138,1730885447925,-500.0,0.00027671,2]
[341440139,1730885447935,-500.0,0.00027671,2]
[341440140,1730885447945,-500.0,0.00027671,2]
[341440141,1730885447953,-500.0,0.00027945,2]
[341440142,1730885447962,-500.0,0.00027945,2]
[341440143,1730885447971,-500.0,0.00027945,2]
[341440144,1730885447981,-572.29,0.00027945,2]
[341440145,1730885447991,-500.0,0.00027945,2]
[341440146,1730885448000,-500.0,0.00027945,2]
[341440147,1730885448010,-913.56,0.00027945,2]
[341440148,1730885448019,-500.0,0.00027945,2]
[341440149,1730885448029,-500.0,0.00027945,2]
[341440150,1730885448038,-1866.94,0.00027945,2]
[341440151,1730885448050,-500.0,0.00027945,2]
[341440152,1730885448060,-1681.75,0.00027945,2]
[341440153,1730885448070,-1025.34,0.00027945,2]
[341440154,1730885448085,-924.07,0.00027945,2]
[341440155,1730885448095,-500.0,0.00027945,2]
[341440156,1730885448104,-608.05,0.00027945,2]
[341440157,1730885448113,-5078.02,0.00027945,2]
[341440158,1730885448123,-198.1197467,0.00027945,2]
[341440159,1730885448132,-548.4,0.00027945,2]
[341440160,1730885448142,-500.0,0.00027945,2]
[341440161,1730885448151,-500.0,0.00027945,2]
[341440162,1730885448161,-500.0,0.00027945,2]
[341440163,1730885448170,-500.0,0.00027945,2]
[341440164,1730885448179,-500.0,0.00027945,2]
[341440165,1730885448189,-2467.3,0.00027945,2]
[341440166,1730885448198,-500.0,0.00027945,2]
[341440167,1730885448206,-7467.39,0.00027945,2]
[341440168,1730885448216,-14544.87,0.00027945,2]
[341440169,1730885448226,-1331.2,0.00027945,2]
[341440170,1730885448236,-500.0,0.00027945,2]
[341440171,1730885448245,-2686.66,0.00027945,2]
[341440172,1730885448254,-500.0,0.00027945,2]
[341440173,1730885448264,-1961.45,0.00027945,2]
[341440174,1730885448273,-901.37,0.00027945,2]
[341440175,1730885448283,-372.85048566,0.00027945,2]
[341440176,1730885448292,-284.31287685,0.00027945,2]
[341440177,1730885448301,-500.0,0.00027945,2]
[341440178,1730885448311,-500.0,0.0002798,5]
[341440179,1730885448323,-292.3449208,0.0002798,5]
[341440180,1730885448333,-500.0,0.0002798,5]
[341440181,1730885448342,-343.15904464,0.0002798,5]
[341440182,1730885448352,-500.0,0.0002798,5]
[341440183,1730885448361,-504.79135082,0.0002798,5]
[341440184,1730885448370,-500.0,0.0002798,2]
[341440185,1730885448379,-500.0,0.0002798,5]
[341440186,1730885448390,-500.0,0.0002798,5]
[341440187,1730885448400,-502.43881425,0.0002798,5]
[341440188,1730885448419,-333.8828899,0.0002798,5]
[341440189,1730885448430,-1223.72434267,0.00028119,2]
[341440190,1730885448440,-500.0,0.00028219,2]
[341440191,1730885448451,-500.0,0.00028219,2]
[341440192,1730885448461,-500.0,0.00028219,2]
[341440193,1730885448471,-572.29,0.00028219,2]
[341440194,1730885448481,-500.0,0.00028219,2]
[341440195,1730885448491,-500.0,0.00028219,2]
[341440196,1730885448502,-913.56,0.00028219,2]
[341440197,1730885448513,-500.0,0.00028219,2]
[341440198,1730885448523,-500.0,0.00028219,2]
[341440199,1730885448532,-1866.94,0.00028219,2]
[341440200,1730885448542,-539.68707258,0.00028219,2]
[341440201,1730885448552,-1681.75,0.00028219,2]
[341440202,1730885448562,-1025.34,0.00028219,2]
[341440203,1730885448574,-924.07,0.00028219,2]
[341440204,1730885448584,-500.0,0.00028219,2]
[341440205,1730885448594,-608.05,0.00028219,2]
[341440206,1730885448604,-5078.02,0.00028219,2]
[341440207,1730885448614,-548.4,0.00028219,2]
[341440208,1730885448624,-500.0,0.00028219,2]
[341440209,1730885448633,-500.0,0.00028219,2]
[341440210,1730885448643,-500.0,0.00028219,2]
[341440211,1730885448653,-500.0,0.00028219,2]
[341440212,1730885448663,-500.0,0.00028219,2]
[341440213,1730885448674,-500.0,0.00028219,2]
[341440214,1730885448684,-2467.3,0.00028219,2]
[341440215,1730885448694,-7467.39,0.00028219,2]
[341440216,1730885448704,-12088.1782781,0.00028219,2]
[341440219,1730885499257,1169.27083333,0.0002082,2]
[341440220,1730885502221,5000.0,0.0002082,2]
[341440221,1730885510146,2447.63600758,0.0002082,2]
[341440223,1730885518660,3023.45734958,0.0002082,2]
[341440227,1730885635326,161.770261,0.00013973,2]
[341440228,1730885817964,175.0,9e-05,2]
[341440229,1730886029355,546.07,0.0002082,2]
[341440230,1730886111078,1169.27083333,0.0002082,2]
[341440231,1730886137352,173.409003,0.00013973,2]
[341440239,1730886462027,3523.45,0.0003445,30]
[341440303,1730886633059,-1169.27083333,0.00021667,2]
[341440304,1730886633071,-224.92078167,0.00021953,2]
[341440305,1730886633082,-278.67477734,0.00021953,2]
[341440306,1730886633103,-637.70276879,0.00021953,2]
[341440307,1730886633113,-1353.246931,0.0002216,2]
[341440308,1730886633122,-201.616395,0.00022241,2]
[341440309,1730886633132,-300.0,0.00022622,2]
[341440310,1730886633141,-300.0,0.00022622,2]
[341440311,1730886633151,-15406.4658471,0.00022623,2]
[341440312,1730886633161,-168.6066405,0.00022838,2]
[341440313,1730886633170,-3000.0,0.00022936,2]
[341440314,1730886633179,-242.4181107,0.00023173,2]
[341440315,1730886633189,-794.260009,0.00023447,2]
[341440316,1730886633198,-869.56,0.00023737,3]
[341440317,1730886633207,-663.61,0.00023737,3]
[341440318,1730886633217,-331.81,0.00023737,3]
[341440319,1730886633227,-165.9,0.00023737,3]
[341440320,1730886633238,-497.74,0.00023737,3]
[341440321,1730886633247,-500.0,0.00023746,2]
[341440322,1730886633256,-290.57828694,0.00023746,2]
[341440323,1730886633265,-165.57542562,0.00023746,2]
[341440324,1730886633274,-172.71410267,0.00023746,2]
[341440325,1730886633283,-159.75920557,0.00023746,2]
[341440326,1730886633293,-1007.45947648,0.00023747,2]
[341440327,1730886633302,-6509.8239144,0.00023748,2]
[341440328,1730886633311,-496.54248582,0.00023773,2]
[341440329,1730886633320,-500.0,0.00023773,2]
[341440330,1730886633329,-503.47932396,0.00023773,2]
[341440331,1730886633338,-500.0,0.00023773,2]
[341440332,1730886633347,-500.0,0.000238,2]
[341440333,1730886633357,-160.44963657,0.000238,2]
[341440334,1730886633366,-321.01283675,0.000238,2]
[341440335,1730886633376,-501.5826517,0.000238,2]
[341440336,1730886633386,-500.0,0.000238,2]
[341440337,1730886633395,-500.0,0.000238,2]
[341440338,1730886633405,-500.0,0.000238,2]
[341440339,1730886633414,-510.35540102,0.000238,2]
[341440340,1730886633423,-1512.02307468,0.000239,2]
[341440341,1730886633433,-7145.99029205,0.00024,3]
[341440342,1730886633463,-22519.99938883,0.00024,3]
[341440343,1730886633472,-416.25194691,0.00024,2]
[341440344,1730886633482,-500.0,0.00024,2]
[341440345,1730886633494,-500.0,0.00024,2]
[341440346,1730886633503,-420.0,0.00024567,2]
[341440347,1730886633513,-1512.02307468,0.00024818,2]
[341440348,1730886633522,-420.0,0.00024884,2]
[341440349,1730886633531,-2302.1145944,0.00024993,2]
[341440350,1730886633541,-1739.12,0.00025107,3]
[341440351,1730886633551,-1327.22,0.00025107,3]
[341440352,1730886633560,-663.62,0.00025107,3]
[341440353,1730886633570,-331.8,0.00025107,3]
[341440354,1730886633580,-1000.0,0.00025142,2]
[341440355,1730886633589,-1000.0,0.0002517,2]
[341440356,1730886633599,-1000.0,0.0002517,2]
[341440357,1730886633608,-507.15723942,0.0002517,2]
[341440358,1730886633617,-3239.238792,0.00025243,2]
[341440359,1730886633626,-500.0,0.0002537,2]
[341440360,1730886633636,-366.40794129,0.0002537,2]
[341440361,1730886633645,-1512.02307468,0.00025736,2]
[341440362,1730886633654,-3239.238792,0.00025928,2]
[341440363,1730886633664,-187.28,0.00026569,2]
[341440364,1730886633673,-3239.238792,0.00026613,2]
[341440365,1730886633682,-500.0,0.00026615,2]
[341440366,1730886633692,-500.0,0.00026615,2]
[341440367,1730886633702,-503.5710637,0.00026615,2]
[341440368,1730886633711,-500.0,0.00026615,2]
[341440369,1730886633720,-504.17553619,0.00026615,2]
[341440370,1730886633730,-160.36480995,0.00026615,2]
[341440371,1730886633741,-1512.02307468,0.00026653,2]
[341440372,1730886633751,-587.0,0.00026679,2]
[341440373,1730886633761,-587.0,0.00027372,2]
[341440374,1730886633771,-503.76821782,0.00027373,2]
[341440375,1730886633780,-500.0,0.00027373,2]
[341440376,1730886633789,-504.21690364,0.00027373,2]
[341440377,1730886633799,-501.78119918,0.00027373,2]
[341440378,1730886633808,-160.3730595,0.00027373,2]
[341440379,1730886633817,-500.0,0.00027373,2]
[341440380,1730886633827,-500.0,0.00027373,2]
[341440381,1730886633837,-187.28,0.00027387,2]
[341440382,1730886633846,-600.0,0.00027396,2]
[341440383,1730886633963,-500.0,0.00027397,2]
[341440384,1730886633980,-600.51628525,0.00027397,2]
[341440385,1730886633992,-500.0,0.00027397,2]
[341440386,1730886634002,-500.0,0.00027397,2]
[341440387,1730886634012,-500.0,0.00027397,2]
[341440388,1730886634026,-500.0,0.00027397,2]
[341440389,1730886634036,-500.0,0.00027397,2]
[341440390,1730886634045,-500.0,0.00027397,2]
[341440391,1730886634055,-500.0,0.00027397,2]
[341440392,1730886634065,-371.55179989,0.00027397,2]
[341440393,1730886634074,-633.18015608,0.00027397,2]
[341440394,1730886634084,-500.0,0.00027397,2]
[341440395,1730886634094,-500.0,0.00027397,2]
[341440396,1730886634104,-500.0,0.00027397,2]
[341440397,1730886634114,-500.0,0.00027397,2]
[341440398,1730886634124,-500.0,0.00027397,2]
[341440399,1730886634133,-500.0,0.00027397,2]
[341440400,1730886634142,-500.0,0.00027397,2]
[341440401,1730886634152,-523.88989039,0.00027397,2]
[341440402,1730886634161,-505.85119816,0.00027397,2]
[341440403,1730886634172,-309.36452179,0.00027397,2]
[341440404,1730886634182,-500.0,0.00027397,2]
[341440405,1730886634191,-411.81066229,0.00027397,2]
[341440406,1730886634201,-1002.17233794,0.00027397,2]
[341440407,1730886634210,-500.0,0.00027397,2]
[341440408,1730886634220,-500.0,0.00027397,2]
[341440409,1730886634229,-500.0,0.00027397,2]
[341440410,1730886634240,-500.0,0.00027397,2]
[341440411,1730886634250,-500.0,0.00027397,2]
[341440412,1730886634260,-538.41489115,0.00027397,2]
[341440413,1730886634269,-500.0,0.00027397,2]
[341440414,1730886634279,-500.0,0.00027397,2]
[341440415,1730886634288,-500.0,0.00027397,2]
[341440416,1730886634298,-500.0,0.00027397,2]
[341440417,1730886634307,-500.0,0.00027397,2]
[341440418,1730886634317,-500.0,0.00027397,2]
[341440419,1730886634326,-500.0,0.00027397,2]
[341440420,1730886634335,-500.0,0.00027397,2]
[341440421,1730886634344,-528.41296138,0.00027397,2]
[341440422,1730886634354,-500.0,0.00027397,2]
[341440423,1730886634363,-500.0,0.00027397,2]
[341440424,1730886634373,-500.0,0.00027397,2]
[341440425,1730886634382,-500.0,0.00027397,2]
[341440426,1730886634392,-500.0,0.00027397,2]
[341440427,1730886634401,-311.76168722,0.00027397,2]
[341440428,1730886634410,-500.0,0.00027397,2]
[341440429,1730886634419,-500.0,0.00027397,2]
[341440430,1730886634428,-500.0,0.00027397,2]
[341440431,1730886634438,-500.0,0.00027397,2]
[341440432,1730886634447,-500.0,0.00027397,2]
[341440433,1730886634456,-500.0,0.00027397,2]
[341440434,1730886634466,-500.0,0.00027397,2]
[341440435,1730886634475,-500.0,0.00027397,2]
[341440436,1730886634485,-470.70763262,0.00027397,2]
[341440437,1730886634496,-500.0,0.00027397,2]
[341440438,1730886634506,-500.0,0.00027397,2]
[341440439,1730886634515,-500.0,0.00027397,2]
[341440440,1730886634524,-500.0,0.00027397,2]
[341440441,1730886634534,-500.0,0.00027397,2]
[341440442,1730886634543,-500.0,0.00027397,2]
[341440443,1730886634552,-500.0,0.00027397,2]
[341440444,1730886634561,-500.0,0.00027397,2]
[341440445,1730886634570,-500.0,0.00027397,2]
[341440446,1730886634579,-500.0,0.00027397,2]
[341440447,1730886634588,-500.0,0.00027397,2]
[341440448,1730886634597,-500.0,0.00027397,2]
[341440449,1730886634607,-500.0,0.00027397,2]
[341440450,1730886634616,-401.96376295,0.00027397,2]
[341440451,1730886634626,-500.0,0.00027397,2]
[341440452,1730886634635,-500.0,0.00027397,2]
[341440453,1730886634645,-500.0,0.00027397,2]
[341440454,1730886634654,-500.0,0.00027397,2]
[341440455,1730886634664,-500.0,0.00027397,2]
[341440456,1730886634673,-500.0,0.00027397,2]
[341440457,1730886634682,-500.0,0.00027397,2]
[341440458,1730886634691,-500.0,0.00027397,2]
[341440459,1730886634701,-500.0,0.00027397,2]
[341440460,1730886634711,-500.0,0.00027397,2]
[341440461,1730886634721,-528.00621077,0.00027397,2]
[341440462,1730886634730,-504.48936784,0.00027397,2]
[341440463,1730886634740,-500.0,0.00027397,2]
[341440464,1730886634750,-500.0,0.00027397,2]
[341440465,1730886634759,-500.0,0.00027397,2]
[341440466,1730886634769,-500.0,0.00027397,2]
[341440467,1730886634779,-500.0,0.00027397,2]
[341440468,1730886634788,-500.0,0.00027397,2]
[341440469,1730886634797,-500.0,0.00027397,2]
[341440470,1730886634807,-500.0,0.00027397,2]
[341440471,1730886634816,-500.0,0.00027397,2]
[341440472,1730886634826,-500.0,0.00027397,2]
[341440473,1730886634836,-500.0,0.00027397,2]
[341440474,1730886634845,-500.0,0.00027397,2]
[341440475,1730886634855,-500.0,0.00027397,2]
[341440476,1730886634864,-500.0,0.00027397,2]
[341440477,1730886634874,-506.28046238,0.00027397,2]
[341440478,1730886634883,-500.0,0.00027397,2]
[341440479,1730886634892,-505.52875455,0.00027397,2]
[341440480,1730886634902,-512.56211605,0.00027397,2]
[341440481,1730886634911,-500.0,0.00027397,2]
[341440482,1730886634922,-616.67115962,0.00027397,2]
[341440483,1730886634931,-500.0,0.00027397,2]
[341440484,1730886634941,-500.0,0.00027397,2]
[341440485,1730886634950,-500.0,0.00027397,2]
[341440486,1730886634960,-500.0,0.00027397,2]
[341440487,1730886634970,-500.0,0.00027397,2]
[341440488,1730886634979,-500.0,0.00027397,2]
[341440489,1730886634988,-500.0,0.00027397,2]